bitfinex-derivatives/quotes_SOLF0:USTF0_20250409
["timestamp","ask_amount","ask_price","bid_price","bid_amount"]
[1744161395500,39.63140481,102.96,102.85,4.5739]
[1744161395690,39.63140481,102.94,102.85,4.5739]
[1744161396106,44.13010481,102.97,102.86,39.63140481]
[1744161396309,0.06565053,102.91,102.88,0.07129272]
[1744161396600,0.06565053,102.91,102.85,4.5739]
[1744161396801,4.08218425,102.94,102.85,4.5739]
[1744161397000,0.06817658,102.89,102.88,0.07111894]
[1744161397303,39.63140481,102.89,102.77,1.6918664]
[1744161397494,39.63140481,102.85,102.76,466.52]
[1744161397699,9.7369,102.8,102.75,9.3213]
[1744161397901,39.63140481,102.85,102.75,9.3213]
[1744161398098,4.08614095,102.84,102.75,9.3213]
[1744161398297,9.7345,102.82,102.76,9.7392]
[1744161398506,0.06850069,102.81,102.79,0.06577257]
[1744161399806,0.06850069,102.81,102.71,4.6251]
[1744161399807,39.6999055,102.81,102.71,4.6251]
[1744161400012,4.09780986,102.8,102.71,13.7644]
[1744161400208,4.09780986,102.8,102.72,39.63140481]
[1744161400513,4.1016551,102.81,102.73,39.63140481]
[1744161400700,10.62764085,102.84,102.73,39.63140481]
[1744161400899,0.06674526,102.78,102.76,0.06514916]
[1744161401311,4.1016551,102.83,102.76,0.06514916]
[1744161401608,9.7334,102.83,102.76,9.7396]
[1744161401799,4.1016551,102.83,102.76,9.7396]
[1744161402001,16.31350026,102.84,102.76,9.7396]
[1744161402308,49.39889913,102.83,102.72,1.94704049]
[1744161402605,0.06652576,102.81,102.79,0.07434789]
[1744161402908,5.66583922,102.83,102.75,39.63140481]
[1744161403105,0.06429305,102.81,102.79,0.06591577]
[1744161403507,5.66583922,102.86,102.8,39.63140481]
[1744161403709,16.34968064,102.91,102.8,39.63140481]
[1744161403905,4.12364328,102.9,102.82,39.63140481]
[1744161404202,5.66583922,102.9,102.84,39.63140481]
[1744161404606,0.07139025,102.88,102.86,0.06408245]
[1744161404800,5.66583922,102.9,102.87,9.7295]
[1744161405103,39.63140481,102.93,102.86,0.06408245]
[1744161405310,9.7295,102.87,102.86,0.06408245]
[1744161405522,9.7295,102.87,102.83,4.5726]
[1744161405706,10.70030297,102.9,102.83,4.5726]
[1744161405909,9.7311,102.86,102.79,552.8141]
[1744161406109,9.7311,102.86,102.85,0.07325297]
[1744161406301,9.7298,102.87,102.8,9.7353]
[1744161406610,9.80001453,102.87,102.84,0.0672816]
[1744161406800,39.63140481,102.89,102.84,0.0672816]
[1744161407001,39.70552577,102.87,102.84,0.0672816]
[1744161407199,16.39775073,102.86,102.84,0.0672816]
[1744161407411,50.33187518,102.85,102.74,4.8473]
[1744161407608,39.63140481,102.83,102.74,9.4897]
[1744161407803,4.13160313,102.82,102.74,9.4897]
[1744161408003,9.7365,102.8,102.74,19.2313]
[1744161408206,4.13160313,102.82,102.74,9.4897]
[1744161408404,4.13160313,102.84,102.74,9.4897]
[1744161408709,0.06188598,102.79,102.77,0.07422025]
[1744161409113,4.13160313,102.84,102.74,9.4897]
[1744161409309,0.06771849,102.79,102.77,0.07428355]
[1744161409711,4.7588,102.85,102.75,39.63140481]
[1744161410011,0.07086418,102.79,102.77,9.80743778]
[1744161410514,5.69327305,102.86,102.78,39.63140481]
[1744161410710,4.12896454,102.87,102.78,39.63140481]
[1744161411012,12.26025141,102.89,102.75,4.4186]
[1744161411202,43.7596359,102.88,102.75,44.05000481]
[1744161411407,39.63140481,102.86,102.75,4.4186]
[1744161411608,0.06258102,102.83,102.8,0.0658706]
[1744161412011,39.63140481,102.82,102.72,1.94704049]
[1744161412309,506.65140481,102.84,102.72,1.94704049]
[1744161412514,467.02,102.84,102.72,1.94704049]
[1744161412713,39.63140481,102.81,102.72,1.94704049]
[1744161412908,8.9697,102.83,102.72,1.94704049]
[1744161413104,39.63140481,102.82,102.72,1.94704049]
[1744161413409,0.066807,102.79,102.76,0.06823669]
[1744161413712,0.066807,102.79,102.74,39.63140481]
[1744161413915,0.066807,102.79,102.75,4.4607]
[1744161414107,4.454,102.83,102.76,0.06430637]
[1744161414308,0.06461656,102.78,102.76,0.06430637]
[1744161414506,39.63140481,102.81,102.72,1.94704049]
[1744161414818,39.63140481,102.77,102.76,8.4e-06]
[1744161415004,9.739,102.77,102.76,8.4e-06]
[1744161415201,9.74,102.77,102.69,4.4607]
[1744161415404,39.63140481,102.78,102.69,4.4607]
[1744161415604,511.37200481,102.8,102.69,44.09210481]
[1744161415910,0.07193368,102.75,102.72,0.06848685]
[1744161416317,0.07193368,102.75,102.69,44.09210481]
[1744161416615,0.07193368,102.75,102.72,0.06788044]
[1744161416813,39.63140481,102.9,102.72,0.06788044]
[1744161417009,4.11691636,102.82,102.72,0.06788044]
[1744161417204,4.454,102.83,102.73,39.63140481]
[1744161417409,42.89760481,102.89,102.77,39.63140481]
[1744161417614,25.72663916,102.88,102.77,39.63140481]
[1744161417818,39.63140481,102.85,102.75,4.8482]
[1744161418117,9.88564515,102.84,102.81,2.328e-05]
[1744161418418,39.63140481,102.85,102.81,2.328e-05]
[1744161418620,10.69731659,102.84,102.81,2.328e-05]
[1744161419310,5.69403067,102.83,102.81,2.328e-05]
[1744161419511,56.02275207,102.83,102.81,2.328e-05]
[1744161419819,26.12675372,102.82,102.81,2.328e-05]
[1744161420017,19.55684884,102.82,102.81,2.328e-05]
[1744161420219,9.82264884,102.82,102.81,2.328e-05]
[1744161420417,0.07265083,102.84,102.81,2.328e-05]
[1744161420616,9.7265,102.91,102.85,9.7314]
[1744161420813,10.7112204,102.94,102.85,101.63140481]
[1744161421014,4.13445781,102.94,102.86,4.6999]
[1744161421314,15.30238259,102.95,102.86,4.6999]
[1744161421518,6.57332478,102.95,102.87,39.63140481]
[1744161421715,4.6781,102.99,102.89,39.63140481]
[1744161421915,39.63140481,103.04,102.91,39.63140481]
[1744161422114,39.63140481,103.0,102.89,39.63140481]
[1744161422315,9.7195,102.98,102.89,44.33130481]
[1744161422511,39.63140481,103.02,102.89,44.33130481]
[1744161422512,4.13641417,103.01,102.93,39.63140481]
[1744161422723,9.7166,103.01,102.95,9.7213]
[1744161422914,4.6781,103.04,102.93,39.63140481]
[1744161423116,0.06747712,102.99,102.97,0.07116464]
[1744161423622,0.06747712,102.99,102.91,39.63140481]
[1744161423623,39.63140481,103.02,102.91,39.63140481]
[1744161423816,0.07192208,102.99,102.97,0.06930991]
[1744161424016,510.70676595,102.98,102.74,466.94]
[1744161424325,39.63140481,102.95,102.82,44.20000481]
[1744161424522,39.63140481,102.93,102.82,4.5686]
[1744161424708,4.13536114,102.92,102.82,4.5686]
[1744161424907,10.71054051,102.95,102.84,39.63140481]
[1744161425126,39.63140481,102.96,102.84,39.63140481]
[1744161425416,9.7232,102.94,102.86,0.07115489]
[1744161425621,4.6744,102.97,102.85,4.8233]
[1744161425817,15.38886562,102.97,102.85,44.45470481]
[1744161426119,39.63140481,102.94,102.82,4.5686]
[1744161426421,9.7302,102.87,102.82,4.5686]
[1744161426725,0.06659623,102.89,102.79,4.8233]
[1744161427024,4.862,102.89,102.79,4.8233]
[1744161427218,39.63140481,102.88,102.76,475.9835]
[1744161427523,39.63140481,102.86,102.76,475.9835]
[1744161427722,39.63140481,102.84,102.76,4.5361]
[1744161427923,39.63140481,102.84,102.75,1.94647201]
[1744161427924,39.7053917,102.82,102.8,0.00397248]
[1744161428323,54.21340481,102.82,102.69,4.5074]
[1744161428622,4.862,102.82,102.72,39.63140481]
[1744161428839,39.63140481,102.8,102.7,8.18145032]
[1744161429126,39.63140481,102.76,102.68,4.5361]
[1744161429311,9.4155,102.82,102.63,10.84516646]
[1744161429312,39.63140481,102.74,102.63,10.84516646]
[1744161429520,0.06570908,102.73,102.71,0.06691812]
[1744161429714,39.63140481,102.72,102.71,1.812e-05]
[1744161429921,43.74804702,102.72,102.63,4.686]
[1744161430218,39.63140481,102.7,102.6,466.92]
[1744161430421,9.751,102.65,102.6,471.606]
[1744161430725,39.63140481,102.7,102.6,471.606]
[1744161430928,39.63140481,102.7,102.61,9.82704119]
[1744161430929,0.07093162,102.64,102.61,9.82704119]
[1744161431123,0.07093162,102.64,102.61,0.07294119]
[1744161431325,4.5535,102.74,102.6,4.686]
[1744161431326,39.63140481,102.68,102.6,4.686]
[1744161431522,0.06824763,102.64,102.61,0.06359186]
[1744161431927,39.63140481,102.66,102.56,4.518]
[1744161432132,44.09300481,102.68,102.56,44.14940481]
[1744161432327,0.07299311,102.64,102.61,0.06334539]
[1744161432528,9.7532,102.62,102.61,0.06334539]
[1744161432832,0.07299311,102.64,102.56,4.518]
[1744161433028,0.07299311,102.64,102.6,0.06136507]
[1744161433234,39.63140481,102.66,102.6,0.06136507]
[1744161433533,0.06526078,102.63,102.6,0.06136507]
[1744161433737,9.7542,102.61,102.6,0.06136507]
[1744161433935,0.06526078,102.63,102.52,4.518]
[1744161434129,0.06526078,102.63,102.55,39.63140481]
[1744161434330,9.7551,102.6,102.59,1.187e-05]
[1744161434728,9.82337051,102.6,102.59,1.187e-05]
[1744161435634,9.7607,102.55,102.53,1.95064859]
[1744161435932,0.06827051,102.6,102.49,44.09664606]
[1744161436130,471.9044,102.62,102.51,39.63140481]
[1744161436334,472.2334,102.67,102.53,39.63140481]
[1744161436529,9.7558,102.6,102.53,49.39310481]
[1744161436834,0.07418724,102.61,102.58,0.06524431]
[1744161437038,9.7567,102.59,102.52,477.4426]
[1744161437334,0.07306041,102.61,102.58,0.07200102]
[1744161437735,39.63140481,102.62,102.49,46.04805595]
[1744161437929,39.63140481,102.6,102.58,0.06423059]
[1744161438126,39.63140481,102.6,102.5,9.7645]
[1744161438331,39.63140481,102.6,102.49,6.41665114]
[1744161438524,39.63140481,102.58,102.49,6.41665114]
[1744161438737,39.63140481,102.56,102.49,1.95145114]
[1744161438936,39.63140481,102.54,102.49,1.95145114]
[1744161439143,467.68,102.55,102.49,1.95145114]
[1744161439342,39.63140481,102.54,102.49,1.95145114]
[1744161439536,0.06518363,102.53,102.5,0.06352107]
[1744161439841,9.82668363,102.53,102.5,0.06352107]
[1744161440031,0.06518363,102.53,102.5,0.06352107]
[1744161441435,9.7627,102.51,102.5,0.06352107]
[1744161441636,0.06518363,102.53,102.5,0.06352107]
[1744161441835,0.06518363,102.53,102.51,9.762]
[1744161442638,0.06518363,102.53,102.5,9.82692107]
[1744161442840,0.06518363,102.53,102.5,0.06352107]
[1744161443234,0.06518363,102.53,102.51,9.7625]
[1744161443437,4.676,102.59,102.5,49.45492588]
[1744161443744,48.82110481,102.63,102.5,49.45492588]
[1744161443745,9.7536,102.61,102.52,39.63140481]
[1744161443942,4.4402,102.63,102.53,4.6816]
[1744161444344,44.07160481,102.63,102.53,4.6816]
[1744161444542,39.63140481,102.61,102.51,1.95102916]
[1744161444845,39.63140481,102.52,102.49,4.125e-05]
[1744161445047,468.04,102.54,102.44,6.35122157]
[1744161445243,9.7664,102.48,102.44,6.35122157]
[1744161445550,39.63140481,102.48,102.44,6.35122157]
[1744161445735,9.7675,102.47,102.44,6.35122157]
[1744161445937,39.63140481,102.52,102.44,6.35122157]
[1744161446147,507.67140481,102.54,102.44,6.35122157]
[1744161446439,39.63140481,102.52,102.44,6.35122157]
[1744161446643,39.63140481,102.51,102.44,6.35122157]
[1744161446845,9.7646,102.49,102.48,7.409e-05]
[1744161447147,0.06508058,102.5,102.48,7.409e-05]
[1744161447443,0.06508058,102.5,102.44,6.35122157]
[1744161447444,39.63140481,102.49,102.44,6.35122157]
[1744161447645,39.63140481,102.46,102.42,0.66033813]
[1744161447838,9.7732,102.4,102.37,1.33885305]
[1744161448039,9.7732,102.4,102.39,1.109e-05]
[1744161449046,0.06574269,102.41,102.39,1.109e-05]
[1744161449347,46.91655323,102.49,102.39,9.76001109]
[1744161449544,46.91655323,102.49,102.39,1.109e-05]
[1744161449748,46.91655323,102.47,102.39,1.109e-05]
[1744161450448,51.77355323,102.51,102.39,46.91656432]
[1744161450642,4.857,102.51,102.42,0.07163965]
[1744161450842,468.32,102.53,102.43,46.91655323]
[1744161451044,46.91655323,102.51,102.4,468.32]
[1744161451250,46.91655323,102.51,102.39,596.86988007]
[1744161451251,46.91655323,102.49,102.39,11.72732684]
[1744161451445,46.91655323,102.47,102.39,11.72732684]
[1744161451639,46.91655323,102.45,102.39,1.95332684]
[1744161451835,46.91655323,102.47,102.39,1.95332684]
[1744161452040,470.01884547,102.53,102.39,1.95332684]
[1744161452041,0.06722262,102.44,102.42,0.06948411]
[1744161452351,9.7646,102.5,102.43,9.7695]
[1744161452555,46.91655323,102.51,102.39,1.109e-05]
[1744161452739,515.23655323,102.53,102.41,46.91655323]
[1744161453148,478.0809,102.53,102.47,9.7657]
[1744161453355,51.44625323,102.55,102.43,46.91655323]
[1744161453652,0.06573996,102.48,102.46,0.06804575]
[1744161454147,46.91655323,102.49,102.39,1.109e-05]
[1744161454360,0.07462625,102.48,102.39,4.65731109]
[1744161454543,46.91655323,102.49,102.43,0.06207133]
[1744161454738,9.7694,102.44,102.43,0.06207133]
[1744161454943,46.98427643,102.45,102.39,1.109e-05]
[1744161455150,0.0677232,102.45,102.39,1.109e-05]
[1744161455342,4.5297,102.48,102.39,1.109e-05]
[1744161455540,46.91655323,102.53,102.41,46.91655323]
[1744161455743,46.91655323,102.53,102.42,4.5965]
[1744161455947,46.91655323,102.53,102.42,9.2166]
[1744161456154,0.07327321,102.49,102.46,0.06336174]
[1744161456556,46.91655323,102.53,102.42,9.2166]
[1744161456743,0.07282716,102.49,102.46,0.07465972]
[1744161457145,46.91655323,102.53,102.42,4.5965]
[1744161457352,46.9818657,102.49,102.46,0.07214771]
[1744161457551,0.06531247,102.49,102.46,0.07214771]
[1744161457750,0.06531247,102.49,102.42,4.5965]
[1744161457949,0.06531247,102.49,102.46,0.06679828]
[1744161458149,4.5325,102.56,102.46,0.06679828]
[1744161458353,9.7597,102.55,102.5,9.7634]
[1744161458557,468.58,102.62,102.48,46.91655323]
[1744161458853,9.7571,102.57,102.51,0.06241215]
[1744161459058,46.91655323,102.6,102.51,0.06241215]
[1744161459258,46.91655323,102.6,102.49,4.6223]
[1744161459550,515.49655323,102.62,102.5,46.91655323]
[1744161459751,4.4996,102.64,102.54,46.91655323]
[1744161459949,0.07166517,102.57,102.55,9.3958]
[1744161460148,0.07166517,102.57,102.55,9.46974037]
[1744161460346,51.41615323,102.64,102.57,9.7568]
[1744161460542,0.07219923,102.57,102.55,9.47014075]
[1744161460748,46.91655323,102.6,102.5,46.91655323]
[1744161460957,46.91655323,102.62,102.5,46.91655323]
[1744161461153,0.07095187,102.57,102.49,9.3958]
[1744161461458,9.7614,102.53,102.49,9.3958]
[1744161461645,46.91655323,102.56,102.49,9.3958]
[1744161461842,46.91655323,102.54,102.42,46.91655323]
[1744161462047,46.91655323,102.54,102.43,14.403]
[1744161462358,46.91655323,102.54,102.43,4.6333]
[1744161462659,0.06257867,102.5,102.47,0.07115518]
[1744161463045,0.06257867,102.5,102.44,515.49655323]
[1744161463248,0.06257867,102.5,102.47,0.07124063]
[1744161464052,9.7656,102.48,102.47,0.07124063]
[1744161464249,0.06257867,102.5,102.47,0.07124063]
[1744161465464,0.06257867,102.5,102.47,62.07124063]
[1744161465964,4.4996,102.57,102.48,46.91655323]
[1744161466151,468.58,102.59,102.5,46.91655323]
[1744161466358,4.6864,102.61,102.51,4.6671]
[1744161466757,48.61357613,102.67,102.54,46.91655323]
[1744161466946,46.91655323,102.65,102.53,468.58]
[1744161467153,0.06890805,102.62,102.59,0.06682536]
[1744161467460,0.06890805,102.62,102.52,48.86739209]
[1744161467755,4.8562,102.64,102.54,46.91655323]
[1744161467951,4.8562,102.64,102.52,1.95083886]
[1744161467952,46.91655323,102.67,102.56,46.91655323]
[1744161468552,0.06561847,102.63,102.6,0.0683352]
[1744161468754,0.06561847,102.63,102.56,46.91655323]
[1744161468954,4.52,102.69,102.56,46.91655323]
[1744161468955,46.91655323,102.68,102.6,0.06737306]
[1744161469464,46.91655323,102.66,102.55,468.58]
[1744161469653,46.91655323,102.6,102.48,4.7176]
[1744161469846,46.91655323,102.6,102.44,9.7688]
[1744161469847,46.91655323,102.54,102.44,9.7688]
[1744161470163,515.33655323,102.56,102.44,46.91655323]
[1744161470361,59.46805323,102.59,102.48,46.91655323]
[1744161470554,46.91655323,102.57,102.46,46.91655323]
[1744161470863,59.46805323,102.59,102.44,1.95236235]
[1744161471065,46.91655323,102.55,102.44,1.95236235]
[1744161471246,0.06221464,102.53,102.5,0.06565546]
[1744161471451,46.91655323,102.55,102.5,0.06565546]
[1744161471645,9.7627,102.51,102.5,0.06565546]
[1744161472259,0.06227491,102.53,102.5,0.06565546]
[1744161473258,9.7524,102.62,102.5,1073.22220869]
[1744161473465,46.91655323,102.65,102.52,46.91655323]
[1744161473659,46.91655323,102.63,102.52,46.91655323]
[1744161473859,9.7586,102.56,102.53,15.02]
[1744161474062,46.91655323,102.61,102.53,15.02]
[1744161474359,0.07482153,102.58,102.56,0.07468885]
[1744161475262,0.07482153,102.58,102.53,15.02]
[1744161475561,9.7598,102.54,102.53,15.02]
[1744161475757,46.91655323,102.55,102.46,42.63]
[1744161475957,9.7627,102.51,102.5,1.43]
[1744161476553,56.67655323,102.51,102.44,1.95236235]
[1744161476762,46.91655323,102.51,102.4,273.02075632]
[1744161476962,9.768,102.46,102.4,273.02075632]
[1744161477164,46.91655323,102.45,102.4,268.25175632]
[1744161477358,46.91655323,102.42,102.4,268.25175632]
[1744161477558,9.7722,102.41,102.4,268.25175632]
[1744161477760,0.06208363,102.42,102.4,268.32050326]
[1744161477960,0.06208363,102.42,102.4,262.23050326]
[1744161478160,0.06208363,102.42,102.4,0.06874694]
[1744161478566,9.7722,102.41,102.4,0.06874694]
[1744161479371,9.7732,102.4,102.39,1.109e-05]
[1744161479561,0.06208363,102.42,102.39,1.109e-05]
[1744161480580,0.06208363,102.42,102.39,0.06909906]
[1744161480775,4.5686,102.48,102.39,0.06909906]
[1744161480968,468.58,102.49,102.39,4.70719906]
[1744161481171,468.58,102.49,102.4,46.91655323]
[1744161481676,56.35095323,102.53,102.44,9.7693]
[1744161481973,0.06487363,102.5,102.47,0.06164366]
[1744161482767,46.91655323,102.58,102.47,19.26754366]
[1744161482962,46.91655323,102.56,102.47,14.1541]
[1744161483177,9.7618,102.53,102.47,14.1541]
[1744161483483,46.91655323,102.58,102.47,14.1541]
[1744161483669,478.1544,102.59,102.48,46.91655323]
[1744161483872,0.06653219,102.54,102.51,0.06934809]
[1744161484069,46.91655323,102.62,102.51,0.06934809]
[1744161484268,468.68,102.64,102.48,515.59655323]
[1744161484269,9.7592,102.55,102.48,515.59655323]
[1744161484478,46.77803145,102.58,102.48,468.68]
[1744161484985,46.77803145,102.57,102.47,14.1541]
[1744161485278,46.77803145,102.55,102.47,14.1541]
[1744161485475,0.06151069,102.53,102.51,0.07107017]
[1744161485682,0.06151069,102.53,102.43,519.87113145]
[1744161485683,4.01749322,102.52,102.43,9.1262]
[1744161485872,9.7647,102.49,102.43,9.1262]
[1744161486073,4.01749322,102.5,102.43,9.1262]
[1744161486273,10.4515752,102.52,102.43,9.1262]
[1744161486471,46.85036709,102.5,102.42,46.8529]
[1744161486679,46.85036709,102.46,102.42,42.36]
[1744161486883,10.44715156,102.45,102.42,42.36]
[1744161487181,10.44715156,102.45,102.43,0.06237392]
[1744161487382,4.01749322,102.44,102.43,0.06237392]
[1744161487685,0.06220185,102.45,102.39,1.109e-05]
[1744161487877,4.07969507,102.45,102.39,1.109e-05]
[1744161488081,10.45168763,102.47,102.39,1.109e-05]
[1744161488779,0.06872535,102.44,102.42,0.06925253]
[1744161488981,4.4725,102.53,102.42,46.85036709]
[1744161489181,10.45860595,102.54,102.45,9.7681]
[1744161489381,4.02000787,102.53,102.45,46.85036709]
[1744161489678,10.45860595,102.53,102.43,46.85036709]
[1744161489885,46.85036709,102.51,102.41,9.0094]
[1744161490073,4.02000787,102.5,102.41,9.0094]
[1744161490275,0.06455751,102.49,102.47,0.06933074]
[1744161490482,4.02000787,102.51,102.44,46.85036709]
[1744161490677,0.0634878,102.49,102.47,0.06463067]
[1744161491787,0.0634878,102.49,102.48,9.7656]
[1744161491976,10.46590131,102.55,102.47,0.06463067]
[1744161492286,46.85036709,102.52,102.42,6.08]
[1744161492478,4.02000787,102.51,102.42,6.08]
[1744161492674,468.68,102.56,102.42,6.08]
[1744161492675,57.3136776,102.55,102.42,52.93036709]
[1744161492872,10.46331051,102.54,102.46,46.85036709]
[1744161493076,4.02000787,102.54,102.48,46.85036709]
[1744161493382,10.46951111,102.58,102.48,46.85036709]
[1744161493587,10.46951111,102.58,102.5,46.85036709]
[1744161493888,9.7566,102.58,102.5,46.85036709]
[1744161494089,55.68996709,102.63,102.51,4.8286]
[1744161494090,46.85036709,102.61,102.51,4.8286]
[1744161494286,0.07176565,102.55,102.53,0.0691837]
[1744161494781,10.48570561,102.58,102.48,9.3789]
[1744161494982,9.7605,102.54,102.53,0.06504111]
[1744161495186,0.06395257,102.55,102.53,0.06504111]
[1744161496002,9.7598,102.54,102.53,0.06504111]
[1744161496301,46.91431966,102.55,102.43,51.67896709]
[1744161496496,9.7633,102.51,102.43,60.98866709]
[1744161496705,57.35162273,102.53,102.43,14.1383]
[1744161496897,4.03788395,102.52,102.43,14.1383]
[1744161497097,10.50075055,102.52,102.43,14.1383]
[1744161497298,0.07241454,102.49,102.46,0.06806508]
[1744161497703,0.07241454,102.49,102.43,60.98866709]
[1744161497900,0.07241454,102.49,102.46,0.06242556]
[1744161499209,9.7665,102.47,102.46,0.06242556]
[1744161499908,9.76,102.47,102.42,14.85]
[1744161500105,10.48876128,102.47,102.42,14.85]
[1744161500311,6.457295,102.46,102.42,14.85]
[1744161500498,10.48876128,102.47,102.42,14.85]
[1744161500701,4.6895,102.48,102.42,14.85]
[1744161501007,468.64,102.5,102.44,0.06420845]
[1744161501008,0.07081592,102.46,102.44,0.06420845]
[1744161501306,0.07081592,102.46,102.42,14.85]
[1744161501507,46.92118301,102.46,102.41,42.31]
[1744161501697,15.25848753,102.45,102.41,42.31]
[1744161501898,4.02679852,102.44,102.41,42.31]
[1744161502111,4.02679852,102.44,102.39,1.109e-05]
[1744161502410,46.85036709,102.4,102.37,6.414e-05]
[1744161502610,57.31381832,102.39,102.35,0.87373252]
[1744161502807,8.78657942,102.38,102.34,7.47447946]
[1744161503314,46.85036709,102.39,102.34,7.47447946]
[1744161503504,4.01292447,102.38,102.34,0.22547946]
[1744161503809,0.07247244,102.38,102.35,0.07042402]
[1744161504310,46.85036709,102.37,102.35,0.07042402]
[1744161504508,46.85036709,102.37,102.34,0.22547946]
[1744161505001,9.7778,102.36,102.34,0.22547946]
[1744161505205,0.07247244,102.38,102.34,0.22547946]
[1744161505515,0.07247244,102.38,102.34,10.00347946]
[1744161505713,0.07247244,102.38,102.35,0.07318745]
[1744161505906,4.00588699,102.42,102.35,46.92355454]
[1744161506108,4.4623,102.47,102.37,46.85036709]
[1744161506312,4.4623,102.47,102.39,46.85036709]
[1744161506313,10.42612357,102.47,102.39,46.85036709]
[1744161506513,46.85036709,102.52,102.41,46.85036709]
[1744161506709,4.01300935,102.51,102.41,515.75036709]
[1744161507016,19.34918315,102.53,102.43,46.85036709]
[1744161507208,0.06450561,102.47,102.45,0.07247496]
[1744161507710,46.85036709,102.48,102.38,4.768]
[1744161507913,0.07318225,102.47,102.45,0.0704481]
[1744161508112,9.7678,102.46,102.39,9.7741]
[1744161508310,4.01403658,102.47,102.38,51.61836709]
[1744161508515,8.9086,102.53,102.38,51.61836709]
[1744161508516,46.85036709,102.52,102.4,46.85036709]
[1744161508716,4.01528979,102.51,102.4,46.85036709]
[1744161509011,4.01605935,102.51,102.41,66.4689]
[1744161509212,10.45116926,102.51,102.41,4.4689]
[1744161509414,0.06684151,102.47,102.44,0.06854187]
[1744161509716,0.06684151,102.47,102.42,51.44686709]
[1744161509920,0.06684151,102.47,102.44,0.0626346]
[1744161510610,9.83394151,102.47,102.44,0.0626346]
[1744161511013,0.06684151,102.47,102.44,0.0626346]
[1744161511710,0.06684151,102.47,102.44,9.8314346]
[1744161512015,0.06684151,102.47,102.44,0.0626346]
[1744161512210,9.83394151,102.47,102.44,0.0626346]
[1744161512417,0.06684151,102.47,102.44,0.0626346]
[1744161513215,0.06684151,102.47,102.45,9.7677]
[1744161513414,0.06684151,102.47,102.44,46.91300169]
[1744161513617,0.06684151,102.47,102.45,4.6243]
[1744161513818,515.75036709,102.55,102.46,9.7675]
[1744161514120,515.75036709,102.55,102.45,4.6243]
[1744161514121,10.46986428,102.54,102.45,4.6243]
[1744161514425,9.7624,102.52,102.47,9.7665]
[1744161514616,4.02434286,102.54,102.45,4.6243]
[1744161514811,4.02434286,102.54,102.46,46.85036709]
[1744161515123,0.06945215,102.51,102.48,0.06652983]
[1744161515512,4.09394182,102.51,102.48,0.06652983]
[1744161515812,0.06945215,102.51,102.49,9.764]
[1744161516213,0.06945215,102.51,102.48,0.06652983]
[1744161516419,1.6976852,102.61,102.5,46.85036709]
[1744161516610,10.48063957,102.61,102.52,46.85036709]
[1744161516808,10.48128956,102.6,102.53,4.7891]
[1744161517009,46.85036709,102.62,102.53,4.7891]
[1744161517206,46.85036709,102.6,102.48,1063.67036709]
[1744161517408,46.85036709,102.56,102.49,4.7891]
[1744161517606,4.10051456,102.55,102.49,4.7891]
[1744161517809,0.07191198,102.55,102.49,4.7891]
[1744161518012,9.7614,102.53,102.49,4.7891]
[1744161518221,0.07191198,102.55,102.5,46.85036709]
[1744161518405,46.85036709,102.62,102.5,46.85036709]
[1744161518607,9.7599,102.54,102.49,14.5531]
[1744161518920,0.06783528,102.57,102.55,0.06718066]
[1744161519117,13.7867227,102.58,102.49,4.7891]
[1744161519416,57.40190526,102.57,102.55,9.74e-06]
[1744161519714,4.0311745,102.56,102.47,51.73296709]
[1744161519920,14.94770833,102.59,102.49,46.85036709]
[1744161520118,50.88124526,102.58,102.48,4.7011]
[1744161520418,46.85036709,102.56,102.43,46.85036709]
[1744161520612,0.06213659,102.54,102.52,0.0638978]
[1744161520813,4.5694,102.57,102.47,46.85036709]
[1744161521010,0.06976117,102.54,102.52,0.0631747]
[1744161521610,51.41976709,102.64,102.52,0.0631747]
[1744161521819,10.48632628,102.63,102.52,0.0631747]
[1744161522014,10.48632628,102.63,102.51,46.85036709]
[1744161522215,46.85036709,102.58,102.5,14.2266]
[1744161522416,46.85036709,102.56,102.5,4.7011]
[1744161522620,46.85036709,102.58,102.5,4.7011]
[1744161522821,0.06678637,102.54,102.52,0.065496]
[1744161523018,9.7613,102.53,102.52,0.065496]
[1744161523618,9.7643,102.5,102.45,9.7681]
[1744161523818,46.91715346,102.54,102.44,9.224]
[1744161524123,9.7619,102.52,102.44,9.224]
[1744161524324,10.47891667,102.55,102.44,9.224]
[1744161524524,10.47891667,102.55,102.47,9.766]
[1744161524719,9.7628,102.51,102.44,9.224]
[1744161524915,9.7628,102.51,102.5,5.011e-05]
[1744161525116,10.47829527,102.51,102.38,9.224]
[1744161525319,46.85036709,102.47,102.38,9.224]
[1744161525523,46.85036709,102.45,102.34,0.22547946]
[1744161525821,4.02199369,102.44,102.34,4.67947946]
[1744161526018,46.85036709,102.47,102.34,51.52984655]